[Event "Late-Titled-Tuesday-Blitz-January-30-2024"]
[Site "Chess.com"]
[Date "2024.01.30"]
[Round "9"]
[White "rdarruda"]
[Black "Anar_Aliakbarov"]
[Result "1-0"]
[WhiteElo "2555"]
[BlackElo "2642"]
[TimeControl "180+1"]
[EndTime "15:45:07 PST"]
[Termination "rdarruda won by checkmate"]

1. d4 {[%clk 0:03:00.9]} 1... d5 {[%clk 0:02:54.5]} 2. Nf3 {[%clk 0:03:00.8]}
2... Nf6 {[%clk 0:02:48.4]} 3. c4 {[%clk 0:03:00.7]} 3... e6 {[%clk 0:02:36.7]}
4. Nc3 {[%clk 0:02:59.6]} 4... Bb4 {[%clk 0:02:25.2]} 5. e3 {[%clk 0:02:59.1]}
5... O-O {[%clk 0:02:24]} 6. Bd3 {[%clk 0:02:59]} 6... dxc4 {[%clk 0:02:23.7]}
7. Bxc4 {[%clk 0:02:58.6]} 7... c5 {[%clk 0:02:24]} 8. O-O {[%clk 0:02:57.6]}
8... Nc6 {[%clk 0:02:20.2]} 9. a3 {[%clk 0:02:54.4]} 9... Bxc3 {[%clk
0:02:20.8]} 10. bxc3 {[%clk 0:02:55]} 10... Qc7 {[%clk 0:02:21.4]} 11. Qe2
{[%clk 0:02:53.9]} 11... e5 {[%clk 0:02:21.6]} 12. dxe5 {[%clk 0:02:40.8]} 12...
Nxe5 {[%clk 0:02:22.5]} 13. Nxe5 {[%clk 0:02:40.7]} 13... Qxe5 {[%clk
0:02:23.1]} 14. Bb2 {[%clk 0:02:40.3]} 14... Ng4 {[%clk 0:02:10.6]} 15. g3
{[%clk 0:02:26]} 15... Qh5 {[%clk 0:02:06.1]} 16. h4 {[%clk 0:02:25.8]} 16... g5
{[%clk 0:01:38]} 17. Kg2 {[%clk 0:02:15.2]} 17... gxh4 {[%clk 0:01:30.3]} 18.
Rh1 {[%clk 0:02:14.1]} 18... h3+ {[%clk 0:01:30.5]} 19. Rxh3 {[%clk 0:01:55]}
19... Nxe3+ {[%clk 0:01:28.8]} 20. Qxe3 {[%clk 0:01:55.9]} 20... Bxh3+ {[%clk
0:01:25.2]} 21. Kg1 {[%clk 0:01:56.8]} 21... Rad8 {[%clk 0:01:16.6]} 22. Be2
{[%clk 0:01:46]} 22... Bg4 {[%clk 0:01:00.4]} 23. Bxg4 {[%clk 0:01:33.9]} 23...
Qxg4 {[%clk 0:01:01.3]} 24. c4 {[%clk 0:01:33.8]} 24... Rfe8 {[%clk 0:00:55.2]}
25. Qxc5 {[%clk 0:01:31.1]} 25... b6 {[%clk 0:00:38.7]} 26. Qc7 {[%clk
0:01:30.8]} 26... Rd2 {[%clk 0:00:33.7]} 27. Bc3 {[%clk 0:01:22.8]} 27... Rc2
{[%clk 0:00:23.6]} 28. Be5 {[%clk 0:01:15.5]} 28... Qf3 {[%clk 0:00:16.4]} 29.
Bd4 {[%clk 0:01:11.4]} 29... Qe4 {[%clk 0:00:10.8]} 30. Be3 {[%clk 0:00:49.1]}
30... Rxc4 {[%clk 0:00:10.2]} 31. Qxa7 {[%clk 0:00:47.2]} 31... b5 {[%clk
0:00:10.1]} 32. Re1 {[%clk 0:00:33.2]} 32... Qc6 {[%clk 0:00:04.5]} 33. Qa5
{[%clk 0:00:25]} 33... Rce4 {[%clk 0:00:04.6]} 34. Qd2 {[%clk 0:00:20.5]} 34...
R4e5 {[%clk 0:00:04.2]} 35. Qd4 {[%clk 0:00:20.3]} 35... Re4 {[%clk 0:00:02.4]}
36. Qd1 {[%clk 0:00:15.9]} 36... Qe6 {[%clk 0:00:02.5]} 37. Qh5 {[%clk
0:00:15.7]} 37... Qg6 {[%clk 0:00:02.4]} 38. Qxb5 {[%clk 0:00:15.3]} 38... R4e5
{[%clk 0:00:02.5]} 39. Qc4 {[%clk 0:00:15]} 39... h5 {[%clk 0:00:02.7]} 40. Qd4
{[%clk 0:00:15]} 40... Kh7 {[%clk 0:00:03]} 41. Qf4 {[%clk 0:00:14.6]} 41... Re4
{[%clk 0:00:03.3]} 42. Qf3 {[%clk 0:00:14.5]} 42... R8e5 {[%clk 0:00:03.4]} 43.
Kg2 {[%clk 0:00:14.6]} 43... h4 {[%clk 0:00:03.6]} 44. Rh1 {[%clk 0:00:13.9]}
44... Kg8 {[%clk 0:00:03.6]} 45. Kf1 {[%clk 0:00:12.2]} 45... hxg3 {[%clk
0:00:03.7]} 46. Rg1 {[%clk 0:00:11.9]} 46... Rg4 {[%clk 0:00:02]} 47. Qa8+
{[%clk 0:00:10.3]} 47... Kh7 {[%clk 0:00:02.2]} 48. Rh1+ {[%clk 0:00:09.8]}
48... Rh5 {[%clk 0:00:02.8]} 49. Rxh5+ {[%clk 0:00:09.7]} 49... Qxh5 {[%clk
0:00:03.7]} 50. fxg3 {[%clk 0:00:09.3]} 50... Rxg3 {[%clk 0:00:03.4]} 51. Qe4+
{[%clk 0:00:08.4]} 51... Qg6 {[%clk 0:00:03.2]} 52. Qh4+ {[%clk 0:00:08.1]}
52... Kg8 {[%clk 0:00:03.9]} 53. Bd4 {[%clk 0:00:07.7]} 53... Qf5+ {[%clk
0:00:03.3]} 54. Ke1 {[%clk 0:00:07.7]} 54... Qe6+ {[%clk 0:00:02.5]} 55. Kd2
{[%clk 0:00:07.6]} 55... Qg4 {[%clk 0:00:01.5]} 56. Qh8# {[%clk 0:00:06.5]} 1-0

[Event "Late-Titled-Tuesday-Blitz-January-30-2024"]
[Site "Chess.com"]
[Date "2024.01.30"]
[Round "9"]
[White "jinxy2009"]
[Black "Flaccidmoves"]
[Result "1-0"]
[WhiteElo "2245"]
[BlackElo "2434"]
[TimeControl "180+1"]
[EndTime "15:45:07 PST"]
[Termination "jinxy2009 won on time"]

1. e4 {[%clk 0:02:56.9]} 1... Nf6 {[%clk 0:02:56.5]} 2. e5 {[%clk 0:02:56.4]}
2... Nd5 {[%clk 0:02:55.2]} 3. c4 {[%clk 0:02:55.8]} 3... Nb6 {[%clk 0:02:55.8]}
4. d4 {[%clk 0:02:54.6]} 4... d6 {[%clk 0:02:56.4]} 5. exd6 {[%clk 0:02:46.2]}
5... exd6 {[%clk 0:02:57.3]} 6. Nc3 {[%clk 0:02:43]} 6... Bf5 {[%clk 0:02:57.3]}
7. Bd3 {[%clk 0:02:42]} 7... Bxd3 {[%clk 0:02:55.8]} 8. Qxd3 {[%clk 0:02:42.9]}
8... Be7 {[%clk 0:02:54.7]} 9. Nge2 {[%clk 0:02:43.2]} 9... O-O {[%clk
0:02:53.6]} 10. O-O {[%clk 0:02:43.4]} 10... Nc6 {[%clk 0:02:51.7]} 11. Be3
{[%clk 0:02:43.7]} 11... d5 {[%clk 0:02:45.6]} 12. c5 {[%clk 0:02:43.3]} 12...
Nc4 {[%clk 0:02:38.8]} 13. b3 {[%clk 0:02:40.4]} 13... Nxe3 {[%clk 0:02:36.6]}
14. Qxe3 {[%clk 0:02:38.4]} 14... Bf6 {[%clk 0:02:35.1]} 15. Rad1 {[%clk
0:02:36.7]} 15... Ne7 {[%clk 0:02:31]} 16. Qf3 {[%clk 0:02:34.5]} 16... c6
{[%clk 0:02:28.7]} 17. Ng3 {[%clk 0:02:31.4]} 17... Qd7 {[%clk 0:02:04.1]} 18.
Nh5 {[%clk 0:02:28.7]} 18... Bg5 {[%clk 0:01:53.6]} 19. Qg3 {[%clk 0:02:17.5]}
19... Qf5 {[%clk 0:01:52.2]} 20. f4 {[%clk 0:02:15.7]} 20... Bh6 {[%clk
0:01:51.5]} 21. Qf3 {[%clk 0:02:12.2]} 21... Ng6 {[%clk 0:01:46.7]} 22. g4
{[%clk 0:02:08.1]} 22... Qd7 {[%clk 0:01:31.2]} 23. g5 {[%clk 0:02:00.1]} 23...
Nh4 {[%clk 0:01:16.7]} 24. Qg3 {[%clk 0:01:44.4]} 24... Nf5 {[%clk 0:01:12.6]}
25. Qg4 {[%clk 0:01:44.5]} 25... Kh8 {[%clk 0:01:03.2]} 26. gxh6 {[%clk
0:01:36.2]} 26... gxh6 {[%clk 0:00:57.3]} 27. Kh1 {[%clk 0:01:33.9]} 27... Rg8
{[%clk 0:00:50.7]} 28. Qh3 {[%clk 0:01:24.7]} 28... Ng3+ {[%clk 0:00:48.8]} 29.
Qxg3 {[%clk 0:01:19.4]} 29... Rxg3 {[%clk 0:00:48.2]} 30. Nxg3 {[%clk
0:01:20.3]} 30... Rg8 {[%clk 0:00:42]} 31. f5 {[%clk 0:01:20.2]} 31... f6 {[%clk
0:00:34.3]} 32. Rde1 {[%clk 0:01:17.2]} 32... Re8 {[%clk 0:00:28.2]} 33. Nh5
{[%clk 0:00:52.8]} 33... Rxe1 {[%clk 0:00:16.6]} 34. Rxe1 {[%clk 0:00:52.7]}
34... Qf7 {[%clk 0:00:17.3]} 35. Nf4 {[%clk 0:00:44.2]} 35... h5 {[%clk
0:00:16.2]} 36. Re6 {[%clk 0:00:37.7]} 36... Kg7 {[%clk 0:00:15.6]} 37. Nce2
{[%clk 0:00:35]} 37... Qc7 {[%clk 0:00:14.9]} 38. Nxh5+ {[%clk 0:00:33.4]} 38...
Kh6 {[%clk 0:00:11.9]} 39. Neg3 {[%clk 0:00:22.3]} 39... Qa5 {[%clk 0:00:10.7]}
40. Rxf6+ {[%clk 0:00:20.6]} 40... Kg5 {[%clk 0:00:11.4]} 41. Rf7 {[%clk
0:00:15.5]} 41... Qe1+ {[%clk 0:00:08.8]} 42. Kg2 {[%clk 0:00:15.2]} 42... Qd2+
{[%clk 0:00:06.6]} 43. Kh3 {[%clk 0:00:15.1]} 43... Qxd4 {[%clk 0:00:04.7]} 44.
Rg7+ {[%clk 0:00:08]} 44... Kh6 {[%clk 0:00:04.6]} 45. f6 {[%clk 0:00:08.1]}
45... Qf2 {[%clk 0:00:02.7]} 46. f7 {[%clk 0:00:07.7]} 46... d4 {[%clk
0:00:02.2]} 47. Rg8 {[%clk 0:00:02.4]} 47... d3 {[%clk 0:00:02.4]} 48. f8=Q+
{[%clk 0:00:02.5]} 1-0

[Event "Late-Titled-Tuesday-Blitz-January-30-2024"]
[Site "Chess.com"]
[Date "2024.01.30"]
[Round "9"]
[White "josmito10"]
[Black "VladimirKramnik"]
[Result "1-0"]
[WhiteElo "2854"]
[BlackElo "2927"]
[TimeControl "180+1"]
[EndTime "15:45:09 PST"]
[Termination "josmito10 won on time"]

1. e4 {[%clk 0:02:59.3]} 1... c5 {[%clk 0:02:59]} 2. Nf3 {[%clk 0:02:59.4]} 2...
d6 {[%clk 0:02:59.1]} 3. Bb5+ {[%clk 0:02:59.5]} 3... Nd7 {[%clk 0:02:58.6]} 4.
d4 {[%clk 0:02:59.3]} 4... cxd4 {[%clk 0:02:57.7]} 5. Qxd4 {[%clk 0:03:00.2]}
5... a6 {[%clk 0:02:56.9]} 6. Bxd7+ {[%clk 0:03:00.2]} 6... Bxd7 {[%clk
0:02:56]} 7. c4 {[%clk 0:03:00.2]} 7... Nf6 {[%clk 0:02:52.8]} 8. Nc3 {[%clk
0:02:59.3]} 8... g6 {[%clk 0:02:52.8]} 9. O-O {[%clk 0:02:58.5]} 9... Bg7 {[%clk
0:02:53.2]} 10. Qd3 {[%clk 0:02:58.9]} 10... O-O {[%clk 0:02:52.1]} 11. Nd4
{[%clk 0:02:54.8]} 11... Rc8 {[%clk 0:02:42.6]} 12. b3 {[%clk 0:02:54.4]} 12...
Ng4 {[%clk 0:02:30.7]} 13. Bb2 {[%clk 0:02:35.3]} 13... Ne5 {[%clk 0:02:28.8]}
14. Qd2 {[%clk 0:02:23.3]} 14... Rxc4 {[%clk 0:02:22.6]} 15. bxc4 {[%clk
0:02:16.9]} 15... Nxc4 {[%clk 0:02:23.1]} 16. Qe2 {[%clk 0:02:03.9]} 16... Nxb2
{[%clk 0:02:23.4]} 17. Qxb2 {[%clk 0:02:01.7]} 17... Bxd4 {[%clk 0:02:23.9]} 18.
Rad1 {[%clk 0:01:56.5]} 18... Bg7 {[%clk 0:02:15.9]} 19. Qb3 {[%clk 0:01:54.1]}
19... Bc6 {[%clk 0:02:13.3]} 20. f3 {[%clk 0:01:47.4]} 20... e6 {[%clk
0:02:06.5]} 21. Ne2 {[%clk 0:01:44]} 21... Qa5 {[%clk 0:01:49]} 22. Qe3 {[%clk
0:01:22.1]} 22... d5 {[%clk 0:01:40.4]} 23. Nd4 {[%clk 0:01:16.8]} 23... Bxd4
{[%clk 0:01:36.4]} 24. Rxd4 {[%clk 0:01:16.1]} 24... dxe4 {[%clk 0:01:36.5]} 25.
fxe4 {[%clk 0:01:14.2]} 25... Qxa2 {[%clk 0:01:35.7]} 26. h4 {[%clk 0:01:04]}
26... e5 {[%clk 0:01:31.7]} 27. Rd2 {[%clk 0:00:59]} 27... Qc4 {[%clk
0:01:30.2]} 28. Re1 {[%clk 0:00:53.7]} 28... Qe6 {[%clk 0:01:27.3]} 29. h5
{[%clk 0:00:51.9]} 29... gxh5 {[%clk 0:01:20.4]} 30. Rf2 {[%clk 0:00:44.9]}
30... Kh8 {[%clk 0:01:08]} 31. Ref1 {[%clk 0:00:44.1]} 31... Qg6 {[%clk
0:00:56.7]} 32. Rf5 {[%clk 0:00:41.2]} 32... Rg8 {[%clk 0:00:41.2]} 33. R1f2
{[%clk 0:00:41.2]} 33... f6 {[%clk 0:00:23]} 34. Qf3 {[%clk 0:00:31.4]} 34...
Qg4 {[%clk 0:00:16]} 35. Rxf6 {[%clk 0:00:15.9]} 35... Bxe4 {[%clk 0:00:15]} 36.
Qxg4 {[%clk 0:00:10.5]} 36... hxg4 {[%clk 0:00:15.5]} 37. Re2 {[%clk 0:00:08.9]}
37... Bg6 {[%clk 0:00:15.3]} 38. Rxe5 {[%clk 0:00:08.8]} 38... Ra8 {[%clk
0:00:13.2]} 39. Re7 {[%clk 0:00:08.1]} 39... a5 {[%clk 0:00:11.1]} 40. Rxb7
{[%clk 0:00:07.8]} 40... a4 {[%clk 0:00:11.1]} 41. Rfb6 {[%clk 0:00:07.6]} 41...
Bc2 {[%clk 0:00:07.2]} 42. Rb8+ {[%clk 0:00:07.3]} 42... Rxb8 {[%clk 0:00:06.3]}
43. Rxb8+ {[%clk 0:00:08.2]} 43... Kg7 {[%clk 0:00:06.7]} 44. Rb6 {[%clk
0:00:07.5]} 44... h5 {[%clk 0:00:05.5]} 45. g3 {[%clk 0:00:07.5]} 45... Bb3
{[%clk 0:00:05.2]} 46. Ra6 {[%clk 0:00:06.7]} 46... Kf7 {[%clk 0:00:03.9]} 47.
Kf2 {[%clk 0:00:07]} 47... Kg7 {[%clk 0:00:03.6]} 48. Ke3 {[%clk 0:00:07.3]}
48... Bc4 {[%clk 0:00:01.3]} 49. Rxa4 {[%clk 0:00:06.7]} 49... Bd5 {[%clk
0:00:01.4]} 50. Ra5 {[%clk 0:00:06.4]} 1-0

[Event "Late-Titled-Tuesday-Blitz-January-30-2024"]
[Site "Chess.com"]
[Date "2024.01.30"]
[Round "9"]
[White "Onthequiet"]
[Black "bazar-wokzal"]
[Result "0-1"]
[WhiteElo "2447"]
[BlackElo "2599"]
[TimeControl "180+1"]
[EndTime "15:45:11 PST"]
[Termination "bazar-wokzal won on time"]

1. d4 {[%clk 0:02:59.5]} 1... Nf6 {[%clk 0:02:59.5]} 2. Nf3 {[%clk 0:02:59.9]}
2... e6 {[%clk 0:02:59.4]} 3. a3 {[%clk 0:02:59.3]} 3... c5 {[%clk 0:02:59]} 4.
dxc5 {[%clk 0:02:58]} 4... Bxc5 {[%clk 0:02:58.5]} 5. b4 {[%clk 0:02:58.5]} 5...
Bb6 {[%clk 0:02:43]} 6. Bb2 {[%clk 0:02:58.4]} 6... d5 {[%clk 0:02:42.1]} 7. e3
{[%clk 0:02:58.7]} 7... Nc6 {[%clk 0:02:41.6]} 8. Nbd2 {[%clk 0:02:58.1]} 8...
O-O {[%clk 0:02:41.2]} 9. Bd3 {[%clk 0:02:56.6]} 9... Qe7 {[%clk 0:02:38.9]} 10.
b5 {[%clk 0:02:52.7]} 10... Na5 {[%clk 0:02:37.4]} 11. O-O {[%clk 0:02:48.1]}
11... Bd7 {[%clk 0:02:36.1]} 12. Bc3 {[%clk 0:02:38.9]} 12... Rac8 {[%clk
0:02:35.7]} 13. Bb4 {[%clk 0:02:38.7]} 13... Qd8 {[%clk 0:02:28.6]} 14. Bxf8
{[%clk 0:02:36.8]} 14... Qxf8 {[%clk 0:02:28.7]} 15. Ne5 {[%clk 0:02:32.7]}
15... Be8 {[%clk 0:02:27.9]} 16. a4 {[%clk 0:02:24.6]} 16... Qd6 {[%clk
0:02:26.3]} 17. Ndf3 {[%clk 0:02:18.6]} 17... Bc7 {[%clk 0:02:17.7]} 18. Qe2
{[%clk 0:02:08]} 18... Ne4 {[%clk 0:02:13.6]} 19. h3 {[%clk 0:00:57.3]} 19... f6
{[%clk 0:02:06.4]} 20. Ng4 {[%clk 0:00:57.1]} 20... Bh5 {[%clk 0:01:54.7]} 21.
Qe1 {[%clk 0:00:40.6]} 21... Bxg4 {[%clk 0:01:39.1]} 22. Bxe4 {[%clk 0:00:37.3]}
22... dxe4 {[%clk 0:01:34.6]} 23. hxg4 {[%clk 0:00:36]} 23... exf3 {[%clk
0:01:34.5]} 24. g3 {[%clk 0:00:36]} 24... Nc4 {[%clk 0:01:20.9]} 25. Qd1 {[%clk
0:00:36]} 25... Ne5 {[%clk 0:01:15.7]} 26. Qxd6 {[%clk 0:00:33.4]} 26... Bxd6
{[%clk 0:01:15.7]} 27. Rfd1 {[%clk 0:00:33.8]} 27... Bb4 {[%clk 0:01:08]} 28.
Rab1 {[%clk 0:00:31.6]} 28... Ba5 {[%clk 0:01:04.9]} 29. Rb2 {[%clk 0:00:25.1]}
29... Rc4 {[%clk 0:01:00.7]} 30. Rd4 {[%clk 0:00:22.8]} 30... Rxd4 {[%clk
0:00:45.9]} 31. exd4 {[%clk 0:00:23.7]} 31... Nxg4 {[%clk 0:00:45.8]} 32. c4
{[%clk 0:00:21.2]} 32... Bc3 {[%clk 0:00:36.5]} 33. b6 {[%clk 0:00:20.3]} 33...
a6 {[%clk 0:00:30.4]} 34. c5 {[%clk 0:00:19.5]} 34... Bxb2 {[%clk 0:00:13.4]}
35. c6 {[%clk 0:00:19.6]} 35... Bxd4 {[%clk 0:00:13.1]} 36. c7 {[%clk
0:00:19.7]} 36... Bxf2+ {[%clk 0:00:12.1]} 37. Kf1 {[%clk 0:00:19.8]} 37... Kf7
{[%clk 0:00:10]} 38. c8=Q {[%clk 0:00:18.7]} 38... Kg6 {[%clk 0:00:10.4]} 39.
Qxe6 {[%clk 0:00:17.1]} 39... h5 {[%clk 0:00:07.6]} 40. Qe8+ {[%clk 0:00:14.3]}
40... Kg5 {[%clk 0:00:07.1]} 41. Qf7 {[%clk 0:00:11]} 41... Bxb6 {[%clk
0:00:06.4]} 42. Qxg7+ {[%clk 0:00:09.5]} 42... Kf5 {[%clk 0:00:06.8]} 43. Qd7+
{[%clk 0:00:07.8]} 43... Ke5 {[%clk 0:00:04.4]} 44. Qxb7 {[%clk 0:00:05.7]}
44... Nh2+ {[%clk 0:00:02.7]} 45. Ke1 {[%clk 0:00:04]} 45... f2+ {[%clk
0:00:03.2]} 46. Kd2 {[%clk 0:00:04.4]} 46... f1=Q {[%clk 0:00:03.4]} 47. Qb8+
{[%clk 0:00:03.8]} 47... Ke4 {[%clk 0:00:03.3]} 48. Qf4+ {[%clk 0:00:03.3]}
48... Qxf4+ {[%clk 0:00:02.7]} 0-1

[Event "Late-Titled-Tuesday-Blitz-January-30-2024"]
[Site "Chess.com"]
[Date "2024.01.30"]
[Round "9"]
[White "alexgo05"]
[Black "Nf3c5"]
[Result "1-0"]
[WhiteElo "2414"]
[BlackElo "2515"]
[TimeControl "180+1"]
[EndTime "15:45:12 PST"]
[Termination "alexgo05 won by checkmate"]

1. Nf3 {[%clk 0:03:00.9]} 1... d5 {[%clk 0:02:51.4]} 2. b3 {[%clk 0:03:00.9]}
2... c6 {[%clk 0:02:50]} 3. Bb2 {[%clk 0:03:01.2]} 3... Nf6 {[%clk 0:02:50.7]}
4. c4 {[%clk 0:03:01.3]} 4... Bf5 {[%clk 0:02:47.4]} 5. e3 {[%clk 0:02:59.9]}
5... e6 {[%clk 0:02:46.7]} 6. d4 {[%clk 0:02:59.3]} 6... Nbd7 {[%clk 0:02:44.1]}
7. Nc3 {[%clk 0:02:59]} 7... Bb4 {[%clk 0:02:40.8]} 8. a3 {[%clk 0:02:51.3]}
8... Bd6 {[%clk 0:02:37.1]} 9. cxd5 {[%clk 0:02:43.1]} 9... exd5 {[%clk
0:02:36.2]} 10. Bd3 {[%clk 0:02:43.4]} 10... Bg4 {[%clk 0:02:27.3]} 11. Ne2
{[%clk 0:02:22.5]} 11... Ne4 {[%clk 0:02:05.5]} 12. Ng3 {[%clk 0:02:20.3]} 12...
Qe7 {[%clk 0:01:58.9]} 13. Qc2 {[%clk 0:02:07.7]} 13... f5 {[%clk 0:01:48.7]}
14. Ne2 {[%clk 0:01:01.2]} 14... O-O {[%clk 0:01:37.3]} 15. h3 {[%clk 0:00:50]}
15... Bxf3 {[%clk 0:01:27.9]} 16. gxf3 {[%clk 0:00:50.9]} 16... Ng5 {[%clk
0:01:28.2]} 17. Ng1 {[%clk 0:00:43.9]} 17... f4 {[%clk 0:01:13]} 18. h4 {[%clk
0:00:29.5]} 18... fxe3 {[%clk 0:00:50.3]} 19. hxg5 {[%clk 0:00:29.4]} 19...
exf2+ {[%clk 0:00:50.7]} 20. Kxf2 {[%clk 0:00:30.3]} 20... Qxg5 {[%clk
0:00:28.8]} 21. Bxh7+ {[%clk 0:00:29.8]} 21... Kf7 {[%clk 0:00:29.5]} 22. Qf5+
{[%clk 0:00:30.2]} 22... Qxf5 {[%clk 0:00:26.8]} 23. Bxf5 {[%clk 0:00:31.1]}
23... Nf6 {[%clk 0:00:27.2]} 24. Nh3 {[%clk 0:00:31.4]} 24... g6 {[%clk
0:00:26.5]} 25. Ng5+ {[%clk 0:00:31.2]} 25... Kg8 {[%clk 0:00:24]} 26. Bxg6
{[%clk 0:00:28.6]} 26... Ng4+ {[%clk 0:00:24.3]} 27. Ke2 {[%clk 0:00:25.1]}
27... Rf6 {[%clk 0:00:18.1]} 28. Bh7+ {[%clk 0:00:20.8]} 28... Kg7 {[%clk
0:00:18.5]} 29. fxg4 {[%clk 0:00:20.6]} 29... Re8+ {[%clk 0:00:19.1]} 30. Ne4
{[%clk 0:00:20.5]} 30... dxe4 {[%clk 0:00:18.1]} 31. d5 {[%clk 0:00:20.8]} 31...
Be5 {[%clk 0:00:17.5]} 32. Bxe5 {[%clk 0:00:21.4]} 32... Rxe5 {[%clk 0:00:18]}
33. dxc6 {[%clk 0:00:21.4]} 33... bxc6 {[%clk 0:00:18.4]} 34. Bf5 {[%clk
0:00:20.2]} 34... Rb5 {[%clk 0:00:16.8]} 35. Rh7+ {[%clk 0:00:18.8]} 35... Kg8
{[%clk 0:00:17.2]} 36. Rxa7 {[%clk 0:00:17.5]} 36... Rxb3 {[%clk 0:00:16.3]} 37.
Rd1 {[%clk 0:00:18]} 37... Rb2+ {[%clk 0:00:15.2]} 38. Ke3 {[%clk 0:00:17.9]}
38... Rb3+ {[%clk 0:00:14.9]} 39. Kxe4 {[%clk 0:00:18.3]} 39... Rf8 {[%clk
0:00:15.5]} 40. Rdd7 {[%clk 0:00:18]} 40... Re8+ {[%clk 0:00:14.4]} 41. Kf4
{[%clk 0:00:18.5]} 41... Rb2 {[%clk 0:00:10.1]} 42. Kg5 {[%clk 0:00:17.3]} 42...
Rbe2 {[%clk 0:00:07.6]} 43. Rh7 {[%clk 0:00:16.7]} 43... R2e3 {[%clk 0:00:04.4]}
44. Rag7+ {[%clk 0:00:16.4]} 44... Kf8 {[%clk 0:00:04.5]} 45. Rg6 {[%clk
0:00:16.9]} 45... Re1 {[%clk 0:00:03]} 46. Rh8+ {[%clk 0:00:17.1]} 46... Kf7
{[%clk 0:00:03.5]} 47. Rxe8 {[%clk 0:00:17]} 47... Rxe8 {[%clk 0:00:03.2]} 48.
Rf6+ {[%clk 0:00:17.3]} 48... Kg8 {[%clk 0:00:02.8]} 49. Rxc6 {[%clk 0:00:16]}
49... Ra8 {[%clk 0:00:03.7]} 50. Rc8+ {[%clk 0:00:16.3]} 50... Rxc8 {[%clk
0:00:03.5]} 51. Bxc8 {[%clk 0:00:17.2]} 51... Kf8 {[%clk 0:00:04.3]} 52. Bf5
{[%clk 0:00:17.2]} 52... Ke7 {[%clk 0:00:05.2]} 53. Kg6 {[%clk 0:00:17.5]} 53...
Kd6 {[%clk 0:00:06.1]} 54. Kh7 {[%clk 0:00:18]} 54... Ke5 {[%clk 0:00:05.7]} 55.
g5 {[%clk 0:00:18.4]} 55... Kxf5 {[%clk 0:00:06.3]} 56. g6 {[%clk 0:00:19.3]}
56... Kg5 {[%clk 0:00:06.1]} 57. g7 {[%clk 0:00:20.2]} 57... Kh5 {[%clk
0:00:07]} 58. a4 {[%clk 0:00:20.1]} 58... Kh4 {[%clk 0:00:07.9]} 59. a5 {[%clk
0:00:20.7]} 59... Kh3 {[%clk 0:00:07.1]} 60. a6 {[%clk 0:00:21.6]} 60... Kh4
{[%clk 0:00:07.1]} 61. a7 {[%clk 0:00:22.5]} 61... Kh5 {[%clk 0:00:08]} 62. a8=Q
{[%clk 0:00:22.9]} 62... Kh4 {[%clk 0:00:08.9]} 63. g8=Q {[%clk 0:00:23]} 63...
Kh5 {[%clk 0:00:09.8]} 64. Qg7 {[%clk 0:00:20.4]} 64... Kh4 {[%clk 0:00:10.7]}
65. Qh1# {[%clk 0:00:17.7]} 1-0

[Event "Late-Titled-Tuesday-Blitz-January-30-2024"]
[Site "Chess.com"]
[Date "2024.01.30"]
[Round "9"]
[White "mbojan"]
[Black "M1711"]
[Result "1-0"]
[WhiteElo "2857"]
[BlackElo "2660"]
[TimeControl "180+1"]
[EndTime "15:45:14 PST"]
[Termination "mbojan won on time"]

1. a3 {[%clk 0:03:00.9]} 1... h6 {[%clk 0:02:58.1]} 2. h3 {[%clk 0:02:56]} 2...
a6 {[%clk 0:02:56.1]} 3. e4 {[%clk 0:02:51.3]} 3... d6 {[%clk 0:02:54.5]} 4. d4
{[%clk 0:02:51.1]} 4... Bd7 {[%clk 0:02:48.6]} 5. Nc3 {[%clk 0:02:49.8]} 5... e5
{[%clk 0:02:48.2]} 6. Nf3 {[%clk 0:02:49.4]} 6... Nc6 {[%clk 0:02:47.5]} 7. Bc4
{[%clk 0:02:42.7]} 7... Nf6 {[%clk 0:02:36.8]} 8. O-O {[%clk 0:02:29.5]} 8...
Be7 {[%clk 0:02:32.1]} 9. Be3 {[%clk 0:02:24]} 9... g5 {[%clk 0:02:30.1]} 10.
dxe5 {[%clk 0:02:10.3]} 10... dxe5 {[%clk 0:02:28.3]} 11. Nh2 {[%clk 0:02:02.3]}
11... Qc8 {[%clk 0:02:17.4]} 12. Qf3 {[%clk 0:01:58.2]} 12... g4 {[%clk
0:01:34.1]} 13. Nxg4 {[%clk 0:01:54.6]} 13... Bxg4 {[%clk 0:01:35]} 14. hxg4
{[%clk 0:01:55]} 14... Qxg4 {[%clk 0:01:35.6]} 15. Rad1 {[%clk 0:01:35.1]} 15...
Qxf3 {[%clk 0:01:33.8]} 16. gxf3 {[%clk 0:01:36]} 16... Bd6 {[%clk 0:01:30]} 17.
Nd5 {[%clk 0:01:31.8]} 17... Nxd5 {[%clk 0:01:28]} 18. Bxd5 {[%clk 0:01:32.7]}
18... Nd8 {[%clk 0:01:21.8]} 19. Kh2 {[%clk 0:01:32]} 19... Ke7 {[%clk
0:01:14.4]} 20. Rg1 {[%clk 0:01:32.2]} 20... c6 {[%clk 0:01:12.6]} 21. Bb3
{[%clk 0:01:31.5]} 21... Ne6 {[%clk 0:01:12.5]} 22. Bxe6 {[%clk 0:01:20.3]}
22... Kxe6 {[%clk 0:01:10.8]} 23. Rd3 {[%clk 0:01:19.8]} 23... Be7 {[%clk
0:01:01.7]} 24. Rgd1 {[%clk 0:01:19.6]} 24... h5 {[%clk 0:00:55.8]} 25. f4
{[%clk 0:01:15.1]} 25... exf4 {[%clk 0:00:54.5]} 26. Bxf4 {[%clk 0:01:16]} 26...
Rad8 {[%clk 0:00:53]} 27. Kg3 {[%clk 0:01:15.5]} 27... Bf6 {[%clk 0:00:44]} 28.
b3 {[%clk 0:01:13.2]} 28... Rhg8+ {[%clk 0:00:41.3]} 29. Kf3 {[%clk 0:01:12.8]}
29... Be7 {[%clk 0:00:25.1]} 30. a4 {[%clk 0:01:11.6]} 30... Rxd3+ {[%clk
0:00:22.2]} 31. cxd3 {[%clk 0:01:12.5]} 31... c5 {[%clk 0:00:21.8]} 32. Rh1
{[%clk 0:01:11.8]} 32... h4 {[%clk 0:00:20.8]} 33. Be3 {[%clk 0:01:11.5]} 33...
Rd8 {[%clk 0:00:11.2]} 34. Ke2 {[%clk 0:01:12]} 34... Rh8 {[%clk 0:00:11.6]} 35.
Rc1 {[%clk 0:01:11.9]} 35... h3 {[%clk 0:00:10.7]} 36. Rh1 {[%clk 0:01:12.6]}
36... f5 {[%clk 0:00:09]} 37. f4 {[%clk 0:01:11.3]} 37... b5 {[%clk 0:00:06]}
38. axb5 {[%clk 0:01:10.2]} 38... axb5 {[%clk 0:00:06.9]} 39. Kf3 {[%clk
0:01:10.9]} 39... h2 {[%clk 0:00:02.7]} 40. Kg2 {[%clk 0:01:05.1]} 40... c4
{[%clk 0:00:03.2]} 41. bxc4 {[%clk 0:00:44.3]} 41... bxc4 {[%clk 0:00:04.1]} 42.
dxc4 {[%clk 0:00:44.9]} 42... fxe4 {[%clk 0:00:04.7]} 43. Rxh2 {[%clk
0:00:45.1]} 43... Rc8 {[%clk 0:00:03]} 44. Rh6+ {[%clk 0:00:43.5]} 44... Kf5
{[%clk 0:00:03.4]} 45. c5 {[%clk 0:00:42.5]} 45... Kg4 {[%clk 0:00:02.5]} 46. c6
{[%clk 0:00:06.3]} 46... Bf8 {[%clk 0:00:03.1]} 47. Rf6 {[%clk 0:00:03.1]} 47...
Bg7 {[%clk 0:00:02.5]} 48. Rg6+ {[%clk 0:00:03.4]} 48... Kf5 {[%clk 0:00:02.3]}
49. Rxg7 {[%clk 0:00:04]} 49... Rxc6 {[%clk 0:00:02.7]} 50. Rg5+ {[%clk
0:00:04.7]} 50... Kf6 {[%clk 0:00:02.9]} 51. Bd4+ {[%clk 0:00:05.4]} 51... Ke6
{[%clk 0:00:03.5]} 52. Rg6+ {[%clk 0:00:05.5]} 52... Kd5 {[%clk 0:00:02.8]} 53.
Rxc6 {[%clk 0:00:06.2]} 53... Kxc6 {[%clk 0:00:03.6]} 54. Be3 {[%clk 0:00:06.7]}
54... Kd5 {[%clk 0:00:04.5]} 55. Kg3 {[%clk 0:00:07.3]} 55... Ke6 {[%clk
0:00:05.4]} 56. Kg4 {[%clk 0:00:08]} 56... Kf6 {[%clk 0:00:06.3]} 57. f5 {[%clk
0:00:08.7]} 57... Kf7 {[%clk 0:00:07.2]} 58. Kf4 {[%clk 0:00:09.2]} 1-0